[Event "Titled Tuesday Blitz December 20 Early 2022"]
[White "Aza, Saulo"]
[Black "Jalapeno_Tractor_Schuppen"]
[WhiteFideId "4410394"]
[WhiteElo "1667"]
[BlackElo "2631"]
[Result "1-0"]
[Round "10"]
[TimeControl "180+2"]
[Date "2022.12.20"]
[WhiteClock "0:00:04"]
[BlackClock "0:00:40"]

1. d4 {[%clk 0:02:50]}  Nf6 {[%clk 0:02:59]} 2. c4 {[%clk 0:02:49]}  g6 {[%clk 0:02:59]} 3. Nc3 {[%clk 0:02:49]}  Bg7 {[%clk 0:03:00]} 4. e4 {[%clk 0:02:48]}  O-O {[%clk 0:03:01]} 5. Nf3 {[%clk 0:02:49]}  d6 {[%clk 0:03:01]} 6. Be2 {[%clk 0:02:49]}  c5 {[%clk 0:03:01]} 7. d5 {[%clk 0:02:47]}  e6 {[%clk 0:03:01]} 8. O-O {[%clk 0:02:46]}  exd5 {[%clk 0:03:01]} 9. cxd5 {[%clk 0:02:45]}  Re8 {[%clk 0:03:01]} 10. Bd3 {[%clk 0:02:42]}  a6 {[%clk 0:03:01]} 11. a4 {[%clk 0:02:40]}  Nbd7 {[%clk 0:03:00]} 12. h3 {[%clk 0:02:40]}  Qc7 {[%clk 0:02:58]} 13. Bf4 {[%clk 0:02:38]}  Nh5 {[%clk 0:02:56]} 14. Bh2 {[%clk 0:02:38]}  Ne5 {[%clk 0:02:56]} 15. Nxe5 {[%clk 0:02:38]}  Bxe5 {[%clk 0:02:57]} 16. Bxe5 {[%clk 0:02:36]}  dxe5 {[%clk 0:02:58]} 17. a5 {[%clk 0:02:30]}  Bd7 {[%clk 0:02:55]} 18. Bc4 {[%clk 0:02:27]}  Qd6 {[%clk 0:02:54]} 19. Kh2 {[%clk 0:02:26]}  Kg7 {[%clk 0:02:46]} 20. g3 {[%clk 0:02:26]}  Nf6 {[%clk 0:02:41]} 21. Qd2 {[%clk 0:02:22]}  h5 {[%clk 0:02:41]} 22. f3 {[%clk 0:02:16]}  Ng8 {[%clk 0:02:31]} 23. h4 {[%clk 0:02:14]}  Rad8 {[%clk 0:02:25]} 24. Rf2 {[%clk 0:02:12]}  Nh6 {[%clk 0:02:21]} 25. Qe3 {[%clk 0:02:03]}  f6 {[%clk 0:02:20]} 26. Bb3 {[%clk 0:01:55]}  Nf7 {[%clk 0:02:19]} 27. Ba4 {[%clk 0:01:53]}  Qe7 {[%clk 0:02:12]} 28. Bxd7 {[%clk 0:01:52]}  Rxd7 {[%clk 0:02:13]} 29. Na4 {[%clk 0:01:52]}  Rc7 {[%clk 0:02:11]} 30. Rc1 {[%clk 0:01:49]}  Rec8 {[%clk 0:02:05]} 31. Nb6 {[%clk 0:01:48]}  Rd8 {[%clk 0:02:05]} 32. Rfc2 {[%clk 0:01:45]}  f5 {[%clk 0:02:01]} 33. Rxc5 {[%clk 0:01:42]}  Rxc5 {[%clk 0:01:59]} 34. Qxc5 {[%clk 0:01:41]}  Qf6 {[%clk 0:02:00]} 35. Qe3 {[%clk 0:01:29]}  f4 {[%clk 0:01:58]} 36. Qf2 {[%clk 0:01:24]}  Nd6 {[%clk 0:01:59]} 37. Rc7+ {[%clk 0:01:21]}  Kh6 {[%clk 0:01:59]} 38. Rd7 {[%clk 0:01:12]}  Rf8 {[%clk 0:01:43]} 39. g4 {[%clk 0:00:59]}  hxg4 {[%clk 0:01:38]} 40. fxg4 {[%clk 0:00:58]}  g5 {[%clk 0:01:39]} 41. Kh3 {[%clk 0:00:40]}  Nxe4 {[%clk 0:01:32]} 42. Qc2 {[%clk 0:00:37]}  Qg6 {[%clk 0:01:22]} 43. h5 {[%clk 0:00:36]}  Nf2+ {[%clk 0:01:22]} 44. Qxf2 {[%clk 0:00:35]}  Qd3+ {[%clk 0:01:23]} 45. Kh2 {[%clk 0:00:31]}  e4 {[%clk 0:01:23]} 46. Rd6+ {[%clk 0:00:23]}  Kh7 {[%clk 0:01:22]} 47. Rd7+ {[%clk 0:00:22]}  Kh6 {[%clk 0:01:19]} 48. Rd6+ {[%clk 0:00:20]}  Kh7 {[%clk 0:01:18]} 49. Rd7+ {[%clk 0:00:15]}  Kg8 {[%clk 0:01:15]} 50. h6 {[%clk 0:00:07]}  f3 {[%clk 0:01:10]} 51. Qg3 {[%clk 0:00:04]}  f2 {[%clk 0:00:44]} 52. h7+ {[%clk 0:00:03]}  Kh8 {[%clk 0:00:40]} 53. Qe5+ {[%clk 0:00:04]}  Rf6 {[%clk 0:00:40]} 54. Qxf6# {[%clk 0:00:04]} 1-0


[Site "https://www.chess.com"]

[Event "Titled Tuesday Blitz December 20 Early 2022"]
[White "Ball, John D L"]
[Black "Mone, Ved"]
[WhiteFideId "402150"]
[BlackFideId "25666290"]
[WhiteElo "2230"]
[BlackElo "1254"]
[Result "1-0"]
[Round "10"]
[TimeControl "180+2"]
[Date "2022.12.20"]
[WhiteClock "0:00:18"]
[BlackClock "0:00:01"]

1. e4 {[%clk 0:03:00]}  c5 {[%clk 0:02:59]} 2. Nf3 {[%clk 0:03:00]}  d6 {[%clk 0:02:57]} 3. Nc3 {[%clk 0:03:00]}  a6 {[%clk 0:02:57]} 4. g3 {[%clk 0:02:59]}  Nf6 {[%clk 0:02:55]} 5. Bg2 {[%clk 0:02:59]}  g6 {[%clk 0:02:55]} 6. O-O {[%clk 0:02:59]}  Bg7 {[%clk 0:02:56]} 7. Re1 {[%clk 0:02:59]}  O-O {[%clk 0:02:57]} 8. e5 {[%clk 0:02:59]}  dxe5 {[%clk 0:02:56]} 9. Nxe5 {[%clk 0:03:00]}  Nbd7 {[%clk 0:02:56]} 10. Nc4 {[%clk 0:03:00]}  Rb8 {[%clk 0:02:54]} 11. d3 {[%clk 0:02:55]}  b5 {[%clk 0:02:54]} 12. Ne5 {[%clk 0:02:46]}  Nxe5 {[%clk 0:02:50]} 13. Rxe5 {[%clk 0:02:47]}  Bb7 {[%clk 0:02:50]} 14. Bxb7 {[%clk 0:02:44]}  Rxb7 {[%clk 0:02:51]} 15. Qf3 {[%clk 0:02:37]}  Rb6 {[%clk 0:02:51]} 16. Bf4 {[%clk 0:02:32]}  Nd7 {[%clk 0:02:13]} 17. Re2 {[%clk 0:02:27]}  e6 {[%clk 0:02:03]} 18. h4 {[%clk 0:02:27]}  Qa8 {[%clk 0:01:59]} 19. Qxa8 {[%clk 0:02:15]}  Rxa8 {[%clk 0:02:00]} 20. Rb1 {[%clk 0:02:14]}  Nf6 {[%clk 0:01:58]} 21. Be5 {[%clk 0:02:14]}  Rc8 {[%clk 0:01:54]} 22. b3 {[%clk 0:02:08]}  h5 {[%clk 0:01:51]} 23. a4 {[%clk 0:02:07]}  b4 {[%clk 0:01:42]} 24. Ne4 {[%clk 0:02:02]}  Nd5 {[%clk 0:01:39]} 25. Bxg7 {[%clk 0:02:01]}  Kxg7 {[%clk 0:01:40]} 26. Rbe1 {[%clk 0:02:01]}  Rbc6 {[%clk 0:01:30]} 27. Kg2 {[%clk 0:02:00]}  a5 {[%clk 0:01:27]} 28. f3 {[%clk 0:01:54]}  Ne7 {[%clk 0:01:27]} 29. g4 {[%clk 0:01:51]}  Nd5 {[%clk 0:01:27]} 30. Kg3 {[%clk 0:01:51]}  Rh8 {[%clk 0:01:19]} 31. Nd2 {[%clk 0:01:41]}  Nb6 {[%clk 0:01:02]} 32. Re5 {[%clk 0:01:40]}  Kf6 {[%clk 0:01:01]} 33. Rxc5 {[%clk 0:01:32]}  Rxc5 {[%clk 0:00:58]} 34. Ne4+ {[%clk 0:01:32]}  Ke7 {[%clk 0:00:59]} 35. Nxc5 {[%clk 0:01:33]}  Rc8 {[%clk 0:00:59]} 36. d4 {[%clk 0:01:31]}  Nd7 {[%clk 0:00:54]} 37. Nxd7 {[%clk 0:01:27]}  Kxd7 {[%clk 0:00:54]} 38. gxh5 {[%clk 0:01:27]}  gxh5 {[%clk 0:00:54]} 39. Re2 {[%clk 0:01:25]}  Kd6 {[%clk 0:00:53]} 40. Kf4 {[%clk 0:01:22]}  f6 {[%clk 0:00:54]} 41. Ke4 {[%clk 0:01:20]}  Rc3 {[%clk 0:00:53]} 42. Rg2 {[%clk 0:01:19]}  Rc8 {[%clk 0:00:42]} 43. Rg6 {[%clk 0:01:06]}  f5+ {[%clk 0:00:41]} 44. Kd3 {[%clk 0:00:43]}  Rc3+ {[%clk 0:00:41]} 45. Kd2 {[%clk 0:00:43]}  Rxf3 {[%clk 0:00:41]} 46. Rg5 {[%clk 0:00:44]}  Kd5 {[%clk 0:00:40]} 47. Rxh5 {[%clk 0:00:45]}  Kxd4 {[%clk 0:00:40]} 48. Rh8 {[%clk 0:00:45]}  Rf2+ {[%clk 0:00:39]} 49. Ke1 {[%clk 0:00:46]}  Rh2 {[%clk 0:00:40]} 50. Ra8 {[%clk 0:00:38]}  Ke3 {[%clk 0:00:31]} 51. Kf1 {[%clk 0:00:37]}  Rxh4 {[%clk 0:00:23]} 52. Rxa5 {[%clk 0:00:38]}  Kf3 {[%clk 0:00:19]} 53. Ke1 {[%clk 0:00:36]}  Re4+ {[%clk 0:00:19]} 54. Kd2 {[%clk 0:00:34]}  e5 {[%clk 0:00:20]} 55. Rd5 {[%clk 0:00:31]}  Kf4 {[%clk 0:00:04]} 56. a5 {[%clk 0:00:31]}  Re3 {[%clk 0:00:05]} 57. a6 {[%clk 0:00:24]}  Rh3 {[%clk 0:00:05]} 58. Rb5 {[%clk 0:00:22]}  Rh8 {[%clk 0:00:03]} 59. Rxb4+ {[%clk 0:00:22]}  Kf3 {[%clk 0:00:03]} 60. Rb5 {[%clk 0:00:21]}  Rd8+ {[%clk 0:00:03]} 61. Ke1 {[%clk 0:00:19]}  Kf4 {[%clk 0:00:03]} 62. a7 {[%clk 0:00:18]}  Ra8 {[%clk 0:00:03]} 63. Ra5 {[%clk 0:00:19]}  e4 {[%clk 0:00:04]} 64. b4 {[%clk 0:00:20]}  Kg4 {[%clk 0:00:02]} 65. b5 {[%clk 0:00:20]}  f4 {[%clk 0:00:01]} 66. b6 {[%clk 0:00:20]}  Kf3 {[%clk 0:00:02]} 67. b7 {[%clk 0:00:19]}  Rh8 {[%clk 0:00:02]} 68. a8=Q {[%clk 0:00:19]}  Rh1+ {[%clk 0:00:02]} 69. Kd2 {[%clk 0:00:19]}  e3+ {[%clk 0:00:03]} 70. Kc3 {[%clk 0:00:19]}  Kf2 {[%clk 0:00:03]} 71. b8=Q {[%clk 0:00:20]}  f3 {[%clk 0:00:04]} 72. Qf4 {[%clk 0:00:19]}  Rh3 {[%clk 0:00:03]} 73. Re5 {[%clk 0:00:19]}  e2 {[%clk 0:00:03]} 74. Qe3+ {[%clk 0:00:19]}  Kg2 {[%clk 0:00:04]} 75. Kd2 {[%clk 0:00:19]}  Kh2 {[%clk 0:00:02]} 76. Qf2+ {[%clk 0:00:17]}  Kh1 {[%clk 0:00:03]} 77. Qa1+ {[%clk 0:00:17]}  e1=Q+ {[%clk 0:00:01]} 78. Qaxe1# {[%clk 0:00:18]} 1-0


[Site "https://www.chess.com"]

[Event "Titled Tuesday Blitz December 20 Early 2022"]
[White "Begmuratov, Khumoyun"]
[Black "Battlecruiser_Operational"]
[WhiteFideId "14210207"]
[WhiteElo "2387"]
[BlackElo "2428"]
[Result "1-0"]
[Round "10"]
[TimeControl "180+2"]
[Date "2022.12.20"]
[WhiteClock "0:01:20"]
[BlackClock "0:00:11"]

1. e4 {[%clk 0:03:00]}  e6 {[%clk 0:02:59]} 2. d4 {[%clk 0:03:00]}  d5 {[%clk 0:02:59]} 3. Nc3 {[%clk 0:03:00]}  h6 {[%clk 0:02:57]} 4. exd5 {[%clk 0:02:59]}  exd5 {[%clk 0:02:58]} 5. Nf3 {[%clk 0:02:58]}  Nc6 {[%clk 0:02:55]} 6. Bf4 {[%clk 0:02:57]}  Be6 {[%clk 0:02:52]} 7. Bb5 {[%clk 0:02:55]}  Bd6 {[%clk 0:02:45]} 8. Qd2 {[%clk 0:02:53]}  Ne7 {[%clk 0:02:42]} 9. O-O-O {[%clk 0:02:45]}  a6 {[%clk 0:02:32]} 10. Bxc6+ {[%clk 0:02:38]}  bxc6 {[%clk 0:02:17]} 11. Rde1 {[%clk 0:02:36]}  Rb8 {[%clk 0:02:09]} 12. Be5 {[%clk 0:02:28]}  Qc8 {[%clk 0:01:50]} 13. Qf4 {[%clk 0:02:20]}  Ng6 {[%clk 0:01:45]} 14. Qg3 {[%clk 0:02:18]}  Nxe5 {[%clk 0:01:35]} 15. Nxe5 {[%clk 0:02:08]}  O-O {[%clk 0:01:21]} 16. Qf3 {[%clk 0:02:03]}  Qb7 {[%clk 0:01:17]} 17. Nd3 {[%clk 0:02:02]}  Qb6 {[%clk 0:01:04]} 18. Ne2 {[%clk 0:01:52]}  Qa5 {[%clk 0:00:51]} 19. Kb1 {[%clk 0:01:49]}  Rb6 {[%clk 0:00:46]} 20. Nec1 {[%clk 0:01:48]}  Rfb8 {[%clk 0:00:35]} 21. Nb3 {[%clk 0:01:47]}  Qa4 {[%clk 0:00:34]} 22. g4 {[%clk 0:01:37]}  a5 {[%clk 0:00:32]} 23. h4 {[%clk 0:01:30]}  Qb5 {[%clk 0:00:32]} 24. Nbc5 {[%clk 0:01:29]}  Bxc5 {[%clk 0:00:20]} 25. dxc5 {[%clk 0:01:30]}  R6b7 {[%clk 0:00:19]} 26. g5 {[%clk 0:01:26]}  h5 {[%clk 0:00:18]} 27. g6 {[%clk 0:01:23]}  d4 {[%clk 0:00:14]} 28. Rxe6 {[%clk 0:01:18]}  fxe6 {[%clk 0:00:14]} 29. Qxh5 {[%clk 0:01:18]}  Qc4 {[%clk 0:00:11]} 30. Qh7+ {[%clk 0:01:17]}  Kf8 {[%clk 0:00:11]} 31. Qh8+ {[%clk 0:01:18]}  Ke7 {[%clk 0:00:11]} 32. Qxg7+ {[%clk 0:01:19]}  Kd8 {[%clk 0:00:10]} 33. Qf8+ {[%clk 0:01:19]}  Kd7 {[%clk 0:00:10]} 34. Qf7+ {[%clk 0:01:20]}  Kd8 {[%clk 0:00:10]} 35. Qf8+ {[%clk 0:01:20]}  Kd7 {[%clk 0:00:11]} 36. Ne5# {[%clk 0:01:20]} 1-0


[Site "https://www.chess.com"]

[Event "Titled Tuesday Blitz December 20 Early 2022"]
[White "Bilandani, Vansh"]
[Black "Zahid, Sanatan"]
[WhiteFideId "8511292"]
[BlackFideId "10201963"]
[WhiteElo "2488"]
[BlackElo "1930"]
[Result "0-1"]
[Round "10"]
[TimeControl "180+2"]
[Date "2022.12.20"]
[WhiteClock "0:00:09"]
[BlackClock "0:02:33"]

1. d4 {[%clk 0:02:57]}  e6 {[%clk 0:02:59]} 2. Nf3 {[%clk 0:02:57]}  Nf6 {[%clk 0:02:59]} 3. g3 {[%clk 0:02:57]}  b6 {[%clk 0:02:59]} 4. Bg2 {[%clk 0:02:57]}  Bb7 {[%clk 0:03:00]} 5. O-O {[%clk 0:02:58]}  c5 {[%clk 0:03:01]} 6. c4 {[%clk 0:02:55]}  cxd4 {[%clk 0:03:00]} 7. Qxd4 {[%clk 0:02:50]}  Nc6 {[%clk 0:03:00]} 8. Qd1 {[%clk 0:02:48]}  d5 {[%clk 0:03:00]} 9. cxd5 {[%clk 0:02:35]}  Qxd5 {[%clk 0:03:00]} 10. Nc3 {[%clk 0:02:33]}  Qxd1 {[%clk 0:03:00]} 11. Rxd1 {[%clk 0:02:34]}  Be7 {[%clk 0:02:59]} 12. Ne5 {[%clk 0:02:21]}  Na5 {[%clk 0:02:58]} 13. Bxb7 {[%clk 0:02:13]}  Nxb7 {[%clk 0:02:59]} 14. Bg5 {[%clk 0:02:03]}  h6 {[%clk 0:02:59]} 15. Bf4 {[%clk 0:01:59]}  O-O {[%clk 0:02:51]} 16. Nc6 {[%clk 0:01:57]}  Rfe8 {[%clk 0:02:52]} 17. Nxe7+ {[%clk 0:01:51]}  Rxe7 {[%clk 0:02:53]} 18. Rac1 {[%clk 0:01:49]}  e5 {[%clk 0:02:48]} 19. Be3 {[%clk 0:01:41]}  Ng4 {[%clk 0:02:47]} 20. Nd5 {[%clk 0:01:37]}  Rd7 {[%clk 0:02:42]} 21. h3 {[%clk 0:01:05]}  Nxe3 {[%clk 0:02:41]} 22. Nf6+ {[%clk 0:00:55]}  gxf6 {[%clk 0:02:42]} 23. Rxd7 {[%clk 0:00:55]}  Nc5 {[%clk 0:02:43]} 24. Rxc5 {[%clk 0:00:48]}  bxc5 {[%clk 0:02:44]} 25. fxe3 {[%clk 0:00:48]}  Rb8 {[%clk 0:02:44]} 26. b3 {[%clk 0:00:47]}  a5 {[%clk 0:02:40]} 27. Rc7 {[%clk 0:00:43]}  Rb5 {[%clk 0:02:36]} 28. Kf2 {[%clk 0:00:41]}  a4 {[%clk 0:02:36]} 29. bxa4 {[%clk 0:00:41]}  Ra5 {[%clk 0:02:37]} 30. Rc6 {[%clk 0:00:38]}  Kg7 {[%clk 0:02:37]} 31. g4 {[%clk 0:00:31]}  Rxa4 {[%clk 0:02:37]} 32. Rxc5 {[%clk 0:00:31]}  Rxa2 {[%clk 0:02:38]} 33. e4 {[%clk 0:00:30]}  Ra3 {[%clk 0:02:37]} 34. e3 {[%clk 0:00:24]}  Kg6 {[%clk 0:02:37]} 35. Kf3 {[%clk 0:00:22]}  Ra1 {[%clk 0:02:37]} 36. Rc8 {[%clk 0:00:20]}  Rf1+ {[%clk 0:02:37]} 37. Kg2 {[%clk 0:00:20]}  Rb1 {[%clk 0:02:36]} 38. Kf3 {[%clk 0:00:20]}  Kg7 {[%clk 0:02:34]} 39. Rc7 {[%clk 0:00:19]}  Rg1 {[%clk 0:02:32]} 40. Rc8 {[%clk 0:00:19]}  h5 {[%clk 0:02:32]} 41. Rb8 {[%clk 0:00:17]}  h4 {[%clk 0:02:32]} 42. Rc8 {[%clk 0:00:14]}  Rg3+ {[%clk 0:02:32]} 43. Kf2 {[%clk 0:00:14]}  Rxh3 {[%clk 0:02:33]} 44. Rc1 {[%clk 0:00:07]}  Rg3 {[%clk 0:02:33]} 45. Rh1 {[%clk 0:00:08]}  Rxg4 {[%clk 0:02:33]} 46. Kf3 {[%clk 0:00:09]}  f5 {[%clk 0:02:26]} 47. exf5 {[%clk 0:00:08]}  Ra4 {[%clk 0:02:26]} 48. e4 {[%clk 0:00:07]}  Ra3+ {[%clk 0:02:27]} 49. Kg4 {[%clk 0:00:08]}  Re3 {[%clk 0:02:27]} 50. Kxh4 {[%clk 0:00:04]}  Kf6 {[%clk 0:02:27]} 51. Kg4 {[%clk 0:00:02]}  Rxe4+ {[%clk 0:02:27]} 52. Kf3 {[%clk 0:00:03]}  Rf4+ {[%clk 0:02:28]} 53. Ke3 {[%clk 0:00:03]}  Kxf5 {[%clk 0:02:28]} 54. Rh5+ {[%clk 0:00:03]}  Ke6 {[%clk 0:02:29]} 55. Rh6+ {[%clk 0:00:04]}  f6 {[%clk 0:02:30]} 56. Rh8 {[%clk 0:00:05]}  Ra4 {[%clk 0:02:30]} 57. Re8+ {[%clk 0:00:05]}  Kf5 {[%clk 0:02:31]} 58. Rh8 {[%clk 0:00:06]}  Ra3+ {[%clk 0:02:31]} 59. Kf2 {[%clk 0:00:06]}  Ke6 {[%clk 0:02:31]} 60. Re8+ {[%clk 0:00:06]}  Kd5 {[%clk 0:02:31]} 61. Rh8 {[%clk 0:00:07]}  f5 {[%clk 0:02:31]} 62. Rd8+ {[%clk 0:00:08]}  Ke4 {[%clk 0:02:31]} 63. Rf8 {[%clk 0:00:08]}  f4 {[%clk 0:02:32]} 64. Re8 {[%clk 0:00:08]}  Ra2+ {[%clk 0:02:32]} 65. Ke1 {[%clk 0:00:08]}  f3 {[%clk 0:02:33]} 66. Rh8 {[%clk 0:00:09]}  Ke3 {[%clk 0:02:33]} 0-1


[Site "https://www.chess.com"]

[Event "Titled Tuesday Blitz December 20 Early 2022"]
[White "Brunstein, Sandrine"]
[Black "Van der Nat, Nicholas"]
[WhiteFideId "625574"]
[BlackFideId "14300427"]
[WhiteElo "1990"]
[BlackElo "2362"]
[Result "1-0"]
[Round "10"]
[TimeControl "180+2"]
[Date "2022.12.20"]
[WhiteClock "0:02:00"]
[BlackClock "0:01:02"]

1. Nf3 {[%clk 0:03:00]}  Nf6 {[%clk 0:02:59]} 2. c4 {[%clk 0:03:00]}  e6 {[%clk 0:02:59]} 3. g3 {[%clk 0:03:00]}  d5 {[%clk 0:02:59]} 4. Bg2 {[%clk 0:03:01]}  Be7 {[%clk 0:02:56]} 5. O-O {[%clk 0:03:01]}  O-O {[%clk 0:02:56]} 6. b3 {[%clk 0:03:00]}  c5 {[%clk 0:02:49]} 7. cxd5 {[%clk 0:02:58]}  Nxd5 {[%clk 0:02:46]} 8. Nc3 {[%clk 0:02:58]}  Nxc3 {[%clk 0:02:20]} 9. dxc3 {[%clk 0:02:59]}  Qxd1 {[%clk 0:02:20]} 10. Rxd1 {[%clk 0:02:59]}  Bf6 {[%clk 0:02:21]} 11. Bf4 {[%clk 0:02:50]}  Bxc3 {[%clk 0:01:51]} 12. Rac1 {[%clk 0:02:50]}  Bb4 {[%clk 0:01:50]} 13. Bd6 {[%clk 0:02:51]}  Re8 {[%clk 0:01:50]} 14. Ne5 {[%clk 0:02:33]}  Na6 {[%clk 0:01:47]} 15. Nc4 {[%clk 0:02:29]}  b5 {[%clk 0:01:16]} 16. Bxa8 {[%clk 0:02:26]}  bxc4 {[%clk 0:01:16]} 17. Bc6 {[%clk 0:02:26]}  Rd8 {[%clk 0:01:13]} 18. bxc4 {[%clk 0:02:08]}  f6 {[%clk 0:01:09]} 19. Bxc5 {[%clk 0:01:59]}  Rxd1+ {[%clk 0:01:07]} 20. Rxd1 {[%clk 0:01:59]}  Bxc5 {[%clk 0:01:01]} 21. Rd8+ {[%clk 0:01:59]}  Kf7 {[%clk 0:01:02]} 22. Rxc8 {[%clk 0:02:00]} 1-0


[Site "https://www.chess.com"]

[Event "Titled Tuesday Blitz December 20 Early 2022"]
[White "ChessTankMan"]
[Black "Rostolis, Riccardo"]
[BlackFideId "819948"]
[WhiteElo "2514"]
[BlackElo "1968"]
[Result "1-0"]
[Round "10"]
[TimeControl "180+2"]
[Date "2022.12.20"]
[WhiteClock "0:00:15"]
[BlackClock "0:00:03"]

1. e4 {[%clk 0:03:00]}  c5 {[%clk 0:02:59]} 2. Nf3 {[%clk 0:03:00]}  d6 {[%clk 0:02:59]} 3. d4 {[%clk 0:03:00]}  cxd4 {[%clk 0:03:00]} 4. Nxd4 {[%clk 0:03:00]}  Nf6 {[%clk 0:03:01]} 5. Nc3 {[%clk 0:03:01]}  g6 {[%clk 0:03:01]} 6. Be3 {[%clk 0:03:00]}  Bg7 {[%clk 0:03:01]} 7. f3 {[%clk 0:02:59]}  Nc6 {[%clk 0:03:01]} 8. g4 {[%clk 0:02:58]}  O-O {[%clk 0:03:00]} 9. Qd2 {[%clk 0:02:58]}  Nxd4 {[%clk 0:02:57]} 10. Bxd4 {[%clk 0:02:58]}  Be6 {[%clk 0:02:57]} 11. O-O-O {[%clk 0:02:58]}  Qa5 {[%clk 0:02:55]} 12. Kb1 {[%clk 0:02:22]}  Rfc8 {[%clk 0:02:54]} 13. a3 {[%clk 0:02:22]}  Rab8 {[%clk 0:02:45]} 14. h4 {[%clk 0:02:14]}  b5 {[%clk 0:02:41]} 15. g5 {[%clk 0:02:00]}  Nh5 {[%clk 0:02:24]} 16. Bxg7 {[%clk 0:02:00]}  Kxg7 {[%clk 0:02:20]} 17. Bh3 {[%clk 0:01:35]}  b4 {[%clk 0:02:11]} 18. Ne2 {[%clk 0:01:25]}  Qe5 {[%clk 0:01:45]} 19. axb4 {[%clk 0:01:14]}  a5 {[%clk 0:01:37]} 20. Bxe6 {[%clk 0:01:13]}  fxe6 {[%clk 0:01:35]} 21. Qd4 {[%clk 0:00:41]}  Rxb4 {[%clk 0:01:18]} 22. Qxe5+ {[%clk 0:00:41]}  dxe5 {[%clk 0:01:18]} 23. Rd7 {[%clk 0:00:41]}  Kf7 {[%clk 0:01:15]} 24. Rhd1 {[%clk 0:00:36]}  Rcb8 {[%clk 0:01:11]} 25. b3 {[%clk 0:00:36]}  a4 {[%clk 0:01:10]} 26. Nc1 {[%clk 0:00:35]}  Nf4 {[%clk 0:01:03]} 27. c3 {[%clk 0:00:31]}  R4b6 {[%clk 0:00:40]} 28. b4 {[%clk 0:00:31]}  Rc8 {[%clk 0:00:40]} 29. Kb2 {[%clk 0:00:22]}  Rbc6 {[%clk 0:00:30]} 30. Na2 {[%clk 0:00:20]}  Ne2 {[%clk 0:00:29]} 31. R1d3 {[%clk 0:00:20]}  Nf4 {[%clk 0:00:27]} 32. Rd2 {[%clk 0:00:20]}  a3+ {[%clk 0:00:24]} 33. Kxa3 {[%clk 0:00:20]}  Ra8+ {[%clk 0:00:24]} 34. Kb3 {[%clk 0:00:19]}  Rca6 {[%clk 0:00:24]} 35. Nc1 {[%clk 0:00:19]}  Ra3+ {[%clk 0:00:21]} 36. Kb2 {[%clk 0:00:19]}  R3a6 {[%clk 0:00:12]} 37. b5 {[%clk 0:00:19]}  Ra5 {[%clk 0:00:11]} 38. c4 {[%clk 0:00:19]}  Ra3 {[%clk 0:00:07]} 39. b6 {[%clk 0:00:17]}  Rxf3 {[%clk 0:00:07]} 40. c5 {[%clk 0:00:17]}  Raa3 {[%clk 0:00:03]} 41. b7 {[%clk 0:00:16]}  Rfc3 {[%clk 0:00:03]} 42. b8=Q {[%clk 0:00:15]}  Rxc5 {[%clk 0:00:03]} 43. Rxe7+ {[%clk 0:00:13]}  Kxe7 {[%clk 0:00:03]} 44. Qd8+ {[%clk 0:00:14]}  Kf7 {[%clk 0:00:03]} 45. Rd7# {[%clk 0:00:15]} 1-0


[Site "https://www.chess.com"]

[Event "Titled Tuesday Blitz December 20 Early 2022"]
[White "CraiggoryC"]
[Black "Husnutdinov, Damir"]
[BlackFideId "14200910"]
[WhiteElo "2227"]
[BlackElo "2415"]
[Result "1-0"]
[Round "10"]
[TimeControl "180+2"]
[Date "2022.12.20"]
[WhiteClock "0:00:13"]
[BlackClock "0:00:02"]

1. e4 {[%clk 0:02:57]}  c5 {[%clk 0:02:59]} 2. Nf3 {[%clk 0:02:57]}  Nc6 {[%clk 0:02:57]} 3. d4 {[%clk 0:02:58]}  cxd4 {[%clk 0:02:56]} 4. Nxd4 {[%clk 0:02:59]}  g6 {[%clk 0:02:55]} 5. Nc3 {[%clk 0:02:59]}  Bg7 {[%clk 0:02:54]} 6. Be3 {[%clk 0:02:59]}  Nf6 {[%clk 0:02:54]} 7. Bc4 {[%clk 0:03:00]}  O-O {[%clk 0:02:53]} 8. Bb3 {[%clk 0:03:00]}  d6 {[%clk 0:02:51]} 9. f3 {[%clk 0:03:00]}  Na5 {[%clk 0:02:45]} 10. Qd2 {[%clk 0:02:58]}  Nxb3 {[%clk 0:02:45]} 11. axb3 {[%clk 0:02:59]}  Bd7 {[%clk 0:02:40]} 12. O-O-O {[%clk 0:02:50]}  a5 {[%clk 0:02:27]} 13. Bh6 {[%clk 0:02:47]}  a4 {[%clk 0:02:27]} 14. bxa4 {[%clk 0:02:37]}  Bxa4 {[%clk 0:02:24]} 15. h4 {[%clk 0:02:33]}  b5 {[%clk 0:01:50]} 16. h5 {[%clk 0:02:29]}  b4 {[%clk 0:01:49]} 17. Nd5 {[%clk 0:02:16]}  Bd7 {[%clk 0:01:12]} 18. Nb3 {[%clk 0:02:00]}  Ba4 {[%clk 0:01:04]} 19. Bxg7 {[%clk 0:01:41]}  Bxb3 {[%clk 0:00:57]} 20. Qh6 {[%clk 0:01:06]}  Nxd5 {[%clk 0:00:21]} 21. Bxf8 {[%clk 0:00:22]}  Ra1+ {[%clk 0:00:16]} 22. Kd2 {[%clk 0:00:22]}  Rxd1+ {[%clk 0:00:16]} 23. Rxd1 {[%clk 0:00:16]}  Qxf8 {[%clk 0:00:14]} 24. Qxf8+ {[%clk 0:00:16]}  Kxf8 {[%clk 0:00:15]} 25. cxb3 {[%clk 0:00:14]}  Nf4 {[%clk 0:00:15]} 26. hxg6 {[%clk 0:00:13]}  hxg6 {[%clk 0:00:14]} 27. g3 {[%clk 0:00:14]}  Nh5 {[%clk 0:00:14]} 28. Rg1 {[%clk 0:00:13]}  Ke8 {[%clk 0:00:12]} 29. Ke3 {[%clk 0:00:13]}  Kd7 {[%clk 0:00:13]} 30. Kd4 {[%clk 0:00:13]}  Kc6 {[%clk 0:00:12]} 31. Kc4 {[%clk 0:00:13]}  e6 {[%clk 0:00:09]} 32. Kxb4 {[%clk 0:00:13]}  d5 {[%clk 0:00:09]} 33. Rc1+ {[%clk 0:00:13]}  Kd6 {[%clk 0:00:09]} 34. g4 {[%clk 0:00:12]}  Nf6 {[%clk 0:00:08]} 35. exd5 {[%clk 0:00:12]}  Nxd5+ {[%clk 0:00:08]} 36. Ka5 {[%clk 0:00:12]}  f5 {[%clk 0:00:07]} 37. b4 {[%clk 0:00:11]}  fxg4 {[%clk 0:00:07]} 38. fxg4 {[%clk 0:00:12]}  e5 {[%clk 0:00:07]} 39. b5 {[%clk 0:00:12]}  e4 {[%clk 0:00:06]} 40. b6 {[%clk 0:00:13]}  e3 {[%clk 0:00:05]} 41. b7 {[%clk 0:00:13]}  Ne7 {[%clk 0:00:02]} 42. b8=Q+ {[%clk 0:00:13]} 1-0


[Site "https://www.chess.com"]